[Event "*** Titled Tuesday Blitz"]
[Site "Chess.com"]
[Date "2018.11.06"]
[Round "5"]
[White "CarlssonLudvig"]
[Black "santosalberto1987"]
[Result "0-1"]
[WhiteElo "2263"]
[BlackElo "2401"]
[TimeControl "180+2"]
[EndTime "14:07:04 PST"]
[Termination "santosalberto1987 won by checkmate"]

1. e4 {[%clk 0:03:01.9]} 1... e6 {[%clk 0:03:00.8]} 2. d4 {[%clk 0:03:01.7]}
2... d5 {[%clk 0:03:02.4]} 3. Nd2 {[%clk 0:03:03.3]} 3... c5 {[%clk 0:03:02.4]}
4. Ngf3 {[%clk 0:03:01.6]} 4... cxd4 {[%clk 0:03:03.1]} 5. exd5 {[%clk
0:03:01.6]} 5... Qxd5 {[%clk 0:03:03.4]} 6. Bc4 {[%clk 0:03:02.4]} 6... Qd6
{[%clk 0:03:04.9]} 7. O-O {[%clk 0:03:02.5]} 7... Nf6 {[%clk 0:03:06.5]} 8. Nb3
{[%clk 0:03:03.5]} 8... Nc6 {[%clk 0:03:08.1]} 9. Nbxd4 {[%clk 0:03:02]} 9...
Nxd4 {[%clk 0:03:09.7]} 10. Nxd4 {[%clk 0:03:03]} 10... a6 {[%clk 0:03:10.5]}
11. c3 {[%clk 0:03:02.2]} 11... Bd7 {[%clk 0:03:10.8]} 12. Bd3 {[%clk
0:02:54.6]} 12... Qc7 {[%clk 0:03:09.6]} 13. Re1 {[%clk 0:02:50.2]} 13... O-O-O
{[%clk 0:03:10]} 14. Qf3 {[%clk 0:02:40.3]} 14... Bd6 {[%clk 0:03:10]} 15. h3
{[%clk 0:02:39.4]} 15... Kb8 {[%clk 0:03:10.1]} 16. Bg5 {[%clk 0:02:35.5]} 16...
Qc5 {[%clk 0:02:43.7]} 17. Bxf6 {[%clk 0:02:26.5]} 17... gxf6 {[%clk 0:02:44.5]}
18. Qxf6 {[%clk 0:02:28.4]} 18... Rhg8 {[%clk 0:02:39.6]} 19. Qxf7 {[%clk
0:02:22.5]} 19... Bc8 {[%clk 0:01:34]} 20. Nxe6 {[%clk 0:02:08.2]} 20... Qd5
{[%clk 0:01:22.8]} 21. Bf1 {[%clk 0:01:54.3]} 21... Rde8 {[%clk 0:01:16]} 22.
Nd8 {[%clk 0:01:32.3]} 22... Qxf7 {[%clk 0:00:30.2]} 23. Nxf7 {[%clk 0:01:34.2]}
23... Bc7 {[%clk 0:00:31.8]} 24. g3 {[%clk 0:01:03.7]} 24... Ref8 {[%clk
0:00:21.3]} 25. Ne5 {[%clk 0:00:56.8]} 25... h5 {[%clk 0:00:22.8]} 26. h4 {[%clk
0:00:53.2]} 26... Rf5 {[%clk 0:00:20]} 27. Nc4 {[%clk 0:00:43.4]} 27... b5
{[%clk 0:00:19.9]} 28. Ne3 {[%clk 0:00:43.2]} 28... Rf6 {[%clk 0:00:20.1]} 29.
Bg2 {[%clk 0:00:38.8]} 29... Rgf8 {[%clk 0:00:20.7]} 30. f4 {[%clk 0:00:36.4]}
30... Rg6 {[%clk 0:00:19.1]} 31. Kh2 {[%clk 0:00:35.3]} 31... Rfg8 {[%clk
0:00:20.4]} 32. Bd5 {[%clk 0:00:34.9]} 32... R8g7 {[%clk 0:00:20.2]} 33. Nf1
{[%clk 0:00:31.7]} 33... Bb6 {[%clk 0:00:19.9]} 34. Re2 {[%clk 0:00:27.9]} 34...
Bg4 {[%clk 0:00:20.7]} 35. Rd2 {[%clk 0:00:26.3]} 35... Bf5 {[%clk 0:00:20]} 36.
Re1 {[%clk 0:00:26]} 36... Bc7 {[%clk 0:00:16.3]} 37. Re3 {[%clk 0:00:20]} 37...
Rg4 {[%clk 0:00:15.7]} 38. Bf3 {[%clk 0:00:16.1]} 38... Bxf4 {[%clk 0:00:08.1]}
39. gxf4 {[%clk 0:00:11.9]} 39... Rxh4# {[%clk 0:00:08.5]} 0-1

[Event "*** Titled Tuesday Blitz"]
[Site "Chess.com"]
[Date "2018.11.06"]
[Round "5"]
[White "GMHess"]
[Black "Mikhail_Golubev"]
[Result "1/2-1/2"]
[WhiteElo "2667"]
[BlackElo "2444"]
[TimeControl "180+2"]
[EndTime "14:07:08 PST"]
[Termination "Game drawn by repetition"]

1. d4 {[%clk 0:03:01.9]} 1... Nf6 {[%clk 0:02:59.3]} 2. c4 {[%clk 0:03:02.9]}
2... g6 {[%clk 0:03:00.1]} 3. Nc3 {[%clk 0:03:02]} 3... Bg7 {[%clk 0:03:01.7]}
4. e4 {[%clk 0:03:02.9]} 4... d6 {[%clk 0:03:02.8]} 5. f3 {[%clk 0:03:01.8]}
5... O-O {[%clk 0:03:04.2]} 6. Be3 {[%clk 0:03:02.4]} 6... a6 {[%clk 0:03:04]}
7. Qd2 {[%clk 0:03:01]} 7... Nbd7 {[%clk 0:03:04.8]} 8. h4 {[%clk 0:02:54.4]}
8... c5 {[%clk 0:02:46.8]} 9. d5 {[%clk 0:02:55.2]} 9... h5 {[%clk 0:02:35.7]}
10. Nh3 {[%clk 0:02:44.7]} 10... Ne5 {[%clk 0:02:25.8]} 11. Ng5 {[%clk
0:02:37.4]} 11... b5 {[%clk 0:02:14.2]} 12. cxb5 {[%clk 0:02:38.3]} 12... axb5
{[%clk 0:01:36]} 13. Nxb5 {[%clk 0:02:10.6]} 13... Bd7 {[%clk 0:01:22.9]} 14.
Nc3 {[%clk 0:00:58.8]} 14... Qb6 {[%clk 0:01:19]} 15. Rb1 {[%clk 0:00:43.9]}
15... Rfb8 {[%clk 0:01:10.4]} 16. b4 {[%clk 0:00:41.4]} 16... Ra3 {[%clk
0:00:32.5]} 17. Be2 {[%clk 0:00:23.6]} 17... Nfg4 {[%clk 0:00:31.5]} 18. fxg4
{[%clk 0:00:10.9]} 18... Nxg4 {[%clk 0:00:31.2]} 19. Nd1 {[%clk 0:00:04.2]}
19... Nxe3 {[%clk 0:00:29.8]} 20. Rb3 {[%clk 0:00:02.4]} 20... Rxb3 {[%clk
0:00:23.4]} 21. axb3 {[%clk 0:00:04.3]} 21... Nxd1 {[%clk 0:00:20.9]} 22. Bxd1
{[%clk 0:00:06.2]} 22... Qxb4 {[%clk 0:00:19.2]} 23. Qxb4 {[%clk 0:00:07]} 23...
Rxb4 {[%clk 0:00:20.1]} 24. O-O {[%clk 0:00:08.1]} 24... Bf6 {[%clk 0:00:19.2]}
25. Bc2 {[%clk 0:00:07.5]} 25... Rd4 {[%clk 0:00:18.2]} 26. Rf2 {[%clk
0:00:05.3]} 26... Bb5 {[%clk 0:00:17.3]} 27. g3 {[%clk 0:00:05.5]} 27... Bxg5
{[%clk 0:00:15.8]} 28. hxg5 {[%clk 0:00:06.6]} 28... Bd3 {[%clk 0:00:16.9]} 29.
Bxd3 {[%clk 0:00:07.2]} 29... Rxd3 {[%clk 0:00:18]} 30. Kg2 {[%clk 0:00:07]}
30... Rxb3 {[%clk 0:00:18.9]} 31. Ra2 {[%clk 0:00:07.9]} 31... f6 {[%clk
0:00:16]} 32. gxf6 {[%clk 0:00:07.4]} 32... exf6 {[%clk 0:00:17]} 33. Ra6 {[%clk
0:00:08.8]} 33... Re3 {[%clk 0:00:16.2]} 34. Rxd6 {[%clk 0:00:09.7]} 34... Rxe4
{[%clk 0:00:17.3]} 35. Rxf6 {[%clk 0:00:10.9]} 35... Kg7 {[%clk 0:00:17.9]} 36.
Rc6 {[%clk 0:00:12]} 36... c4 {[%clk 0:00:19]} 37. d6 {[%clk 0:00:12.5]} 37...
Rd4 {[%clk 0:00:19.5]} 38. d7 {[%clk 0:00:09.9]} 38... Rxd7 {[%clk 0:00:19]} 39.
Rxc4 {[%clk 0:00:11.2]} 39... Kh6 {[%clk 0:00:20.1]} 40. Kh3 {[%clk 0:00:11.2]}
40... Rd2 {[%clk 0:00:20.6]} 41. Rc6 {[%clk 0:00:12.1]} 41... Kg5 {[%clk
0:00:21.3]} 42. Rc5+ {[%clk 0:00:12.9]} 42... Kh6 {[%clk 0:00:22.1]} 43. Rc6
{[%clk 0:00:14.3]} 43... Kg5 {[%clk 0:00:23.2]} 44. Rc5+ {[%clk 0:00:15.5]}
44... Kh6 {[%clk 0:00:24.3]} 45. Rc6 {[%clk 0:00:17]} 1/2-1/2

[Event "*** Titled Tuesday Blitz"]
[Site "Chess.com"]
[Date "2018.11.06"]
[Round "5"]
[White "nOcHeaTiNgKiD"]
[Black "Alohamora11"]
[Result "0-1"]
[WhiteElo "2438"]
[BlackElo "2325"]
[TimeControl "180+2"]
[EndTime "14:07:09 PST"]
[Termination "Alohamora11 won by checkmate"]

1. e4 {[%clk 0:03:01.9]} 1... c5 {[%clk 0:02:58.7]} 2. b4 {[%clk 0:03:02.1]}
2... cxb4 {[%clk 0:02:55.4]} 3. Nf3 {[%clk 0:03:02.6]} 3... e6 {[%clk
0:02:53.8]} 4. a3 {[%clk 0:03:03.2]} 4... d5 {[%clk 0:02:51]} 5. e5 {[%clk
0:03:04.1]} 5... Nc6 {[%clk 0:02:46.8]} 6. d4 {[%clk 0:03:03.3]} 6... Qa5 {[%clk
0:02:34.4]} 7. Bd3 {[%clk 0:02:52.9]} 7... Nge7 {[%clk 0:02:18.7]} 8. g4 {[%clk
0:02:41.2]} 8... h5 {[%clk 0:02:14.4]} 9. Rg1 {[%clk 0:02:18.3]} 9... hxg4
{[%clk 0:02:09.6]} 10. Rxg4 {[%clk 0:02:17.7]} 10... b3+ {[%clk 0:02:07.4]} 11.
Bd2 {[%clk 0:02:12.7]} 11... bxc2 {[%clk 0:02:08.3]} 12. Qxc2 {[%clk 0:02:09.3]}
12... Qb6 {[%clk 0:02:02.8]} 13. Nc3 {[%clk 0:02:08.6]} 13... g6 {[%clk
0:01:58.9]} 14. Rb1 {[%clk 0:02:05.4]} 14... Qd8 {[%clk 0:01:58.6]} 15. Bg5
{[%clk 0:02:00.5]} 15... Qd7 {[%clk 0:01:52.4]} 16. Bf6 {[%clk 0:01:58.6]} 16...
Rh3 {[%clk 0:01:49.6]} 17. Ng5 {[%clk 0:01:56.2]} 17... Rxh2 {[%clk 0:01:43.5]}
18. Nxf7 {[%clk 0:01:47.3]} 18... Nxd4 {[%clk 0:01:10.4]} 19. Nd6+ {[%clk
0:01:07.6]} 19... Qxd6 {[%clk 0:01:11]} 20. Qa4+ {[%clk 0:01:08.2]} 20... Qc6
{[%clk 0:01:07.5]} 21. Qxd4 {[%clk 0:01:05.5]} 21... Nf5 {[%clk 0:01:08.1]} 22.
Bxf5 {[%clk 0:00:57.3]} 22... exf5 {[%clk 0:00:53.3]} 23. Rxg6 {[%clk
0:00:23.1]} 23... Rh1+ {[%clk 0:00:52.6]} 24. Kd2 {[%clk 0:00:21]} 24... Rxb1
{[%clk 0:00:51.5]} 25. Nxb1 {[%clk 0:00:21.9]} 25... Kf7 {[%clk 0:00:33.1]} 26.
Rg1 {[%clk 0:00:16.4]} 26... Bh6+ {[%clk 0:00:33.6]} 27. f4 {[%clk 0:00:15.5]}
27... Be6 {[%clk 0:00:29.2]} 28. Rh1 {[%clk 0:00:13.4]} 28... Rc8 {[%clk
0:00:23.1]} 29. Nc3 {[%clk 0:00:13.2]} 29... Bxf4+ {[%clk 0:00:22.5]} 30. Kd3
{[%clk 0:00:14]} 30... Qc4+ {[%clk 0:00:20.8]} 31. Qxc4 {[%clk 0:00:15.3]} 31...
dxc4+ {[%clk 0:00:22.2]} 32. Ke2 {[%clk 0:00:16.2]} 32... Kg6 {[%clk 0:00:19.2]}
33. Rg1+ {[%clk 0:00:16.9]} 33... Kh5 {[%clk 0:00:16.8]} 34. Kf3 {[%clk
0:00:17.3]} 34... Bd2 {[%clk 0:00:16.8]} 35. Rh1+ {[%clk 0:00:18]} 35... Kg6
{[%clk 0:00:17.5]} 36. Rg1+ {[%clk 0:00:15.5]} 36... Kf7 {[%clk 0:00:17.7]} 37.
Rg7+ {[%clk 0:00:15.5]} 37... Kf8 {[%clk 0:00:19]} 38. Nb5 {[%clk 0:00:13.5]}
38... c3 {[%clk 0:00:17.2]} 39. Re7 {[%clk 0:00:09]} 39... c2 {[%clk 0:00:17]}
40. Nd4 {[%clk 0:00:10.1]} 40... Bd5+ {[%clk 0:00:15.3]} 41. Kf2 {[%clk
0:00:11.4]} 41... c1=Q {[%clk 0:00:15.8]} 42. Nxf5 {[%clk 0:00:12.8]} 42... Qe1#
{[%clk 0:00:16.6]} 0-1

[Event "*** Titled Tuesday Blitz"]
[Site "Chess.com"]
[Date "2018.11.06"]
[Round "5"]
[White "dhanushbharadwaj"]
[Black "xavielhumilde_1999"]
[Result "0-1"]
[WhiteElo "2481"]
[BlackElo "2321"]
[TimeControl "180+2"]
[EndTime "14:07:13 PST"]
[Termination "xavielhumilde_1999 won by checkmate"]

1. Nf3 {[%clk 0:03:01.9]} 1... Nf6 {[%clk 0:02:57.1]} 2. c4 {[%clk 0:03:00.4]}
2... c5 {[%clk 0:02:57.9]} 3. Nc3 {[%clk 0:03:00.7]} 3... e6 {[%clk 0:02:58.2]}
4. g3 {[%clk 0:03:01.2]} 4... b6 {[%clk 0:02:53.2]} 5. Bg2 {[%clk 0:03:01.9]}
5... Bb7 {[%clk 0:02:53.7]} 6. O-O {[%clk 0:03:02.7]} 6... Be7 {[%clk
0:02:54.7]} 7. Re1 {[%clk 0:03:03.6]} 7... d6 {[%clk 0:02:49]} 8. e4 {[%clk
0:03:04.2]} 8... a6 {[%clk 0:02:47.6]} 9. d4 {[%clk 0:03:04.9]} 9... cxd4 {[%clk
0:02:46.3]} 10. Nxd4 {[%clk 0:03:06.8]} 10... Qc7 {[%clk 0:02:47.8]} 11. Be3
{[%clk 0:03:07.3]} 11... O-O {[%clk 0:02:43.6]} 12. Rc1 {[%clk 0:03:07.5]} 12...
Nbd7 {[%clk 0:02:43.3]} 13. b3 {[%clk 0:03:07.4]} 13... Rfe8 {[%clk 0:02:36.8]}
14. h3 {[%clk 0:03:06.6]} 14... Rac8 {[%clk 0:02:35.2]} 15. f4 {[%clk
0:03:04.7]} 15... h5 {[%clk 0:02:36]} 16. g4 {[%clk 0:03:02.7]} 16... hxg4
{[%clk 0:02:34.5]} 17. hxg4 {[%clk 0:03:04.6]} 17... Nc5 {[%clk 0:02:36.1]} 18.
Bf2 {[%clk 0:02:55.6]} 18... d5 {[%clk 0:02:37.2]} 19. e5 {[%clk 0:02:54.9]}
19... Nfe4 {[%clk 0:02:37.2]} 20. Nxe4 {[%clk 0:02:54]} 20... dxe4 {[%clk
0:02:36.9]} 21. Be3 {[%clk 0:02:52.7]} 21... Nd3 {[%clk 0:02:37.7]} 22. g5
{[%clk 0:02:22.6]} 22... Nxc1 {[%clk 0:02:35.2]} 23. Qxc1 {[%clk 0:02:23.4]}
23... b5 {[%clk 0:02:35.1]} 24. Qd1 {[%clk 0:02:10.3]} 24... bxc4 {[%clk
0:02:32.8]} 25. Qh5 {[%clk 0:02:11]} 25... g6 {[%clk 0:02:28.9]} 26. Qh3 {[%clk
0:01:54.4]} 26... Bf8 {[%clk 0:02:29.6]} 27. bxc4 {[%clk 0:01:52.3]} 27... Qxc4
{[%clk 0:02:25.8]} 28. Bf1 {[%clk 0:01:53.5]} 28... Qxa2 {[%clk 0:02:24]} 29.
Re2 {[%clk 0:01:54.4]} 29... Qa3 {[%clk 0:02:23.6]} 30. Rh2 {[%clk 0:01:54.2]}
30... Bg7 {[%clk 0:02:23.3]} 31. Be2 {[%clk 0:01:23.7]} 31... Rc3 {[%clk
0:02:19.8]} 32. Kf2 {[%clk 0:01:23.3]} 32... Rec8 {[%clk 0:02:11.4]} 33. f5
{[%clk 0:01:03.6]} 33... exf5 {[%clk 0:02:02.9]} 34. e6 {[%clk 0:00:47.8]} 34...
Rxe3 {[%clk 0:01:58.8]} 35. Qh7+ {[%clk 0:00:38.6]} 35... Kf8 {[%clk 0:01:59.2]}
36. e7+ {[%clk 0:00:39.6]} 36... Kxe7 {[%clk 0:01:51.3]} 37. Qxg7 {[%clk
0:00:40.1]} 37... Qd6 {[%clk 0:01:19.5]} 38. Qf6+ {[%clk 0:00:31.5]} 38... Qxf6
{[%clk 0:01:20.2]} 39. gxf6+ {[%clk 0:00:33.4]} 39... Kxf6 {[%clk 0:01:21.8]}
40. Kxe3 {[%clk 0:00:35.3]} 40... Ke5 {[%clk 0:01:23.2]} 41. Rh7 {[%clk
0:00:23.3]} 41... f4+ {[%clk 0:01:21.7]} 42. Kf2 {[%clk 0:00:24.7]} 42... Kxd4
{[%clk 0:01:19]} 43. Rxf7 {[%clk 0:00:25.1]} 43... e3+ {[%clk 0:01:17.6]} 44.
Ke1 {[%clk 0:00:25.7]} 44... Rc1+ {[%clk 0:01:16.8]} 45. Bd1 {[%clk 0:00:26.9]}
45... Bd5 {[%clk 0:01:16]} 46. Rxf4+ {[%clk 0:00:27.4]} 46... Kd3 {[%clk
0:01:14]} 47. Ra4 {[%clk 0:00:19.4]} 47... Rxd1+ {[%clk 0:01:14.3]} 48. Kxd1
{[%clk 0:00:19.7]} 48... Bb3+ {[%clk 0:01:15.6]} 49. Ke1 {[%clk 0:00:20.2]}
49... Bxa4 {[%clk 0:01:17.1]} 50. Kf1 {[%clk 0:00:22.1]} 50... Kd2 {[%clk
0:01:16.9]} 51. Kg2 {[%clk 0:00:23.1]} 51... e2 {[%clk 0:01:18.5]} 52. Kg3
{[%clk 0:00:25]} 52... e1=R {[%clk 0:01:18.7]} 53. Kg4 {[%clk 0:00:24]} 53...
Bc2 {[%clk 0:01:20.3]} 54. Kg5 {[%clk 0:00:25.9]} 54... a5 {[%clk 0:01:21.8]}
55. Kf6 {[%clk 0:00:27.8]} 55... a4 {[%clk 0:01:23.3]} 56. Kg5 {[%clk
0:00:23.4]} 56... a3 {[%clk 0:01:24.6]} 57. Kf6 {[%clk 0:00:25.3]} 57... a2
{[%clk 0:01:25.9]} 58. Kg7 {[%clk 0:00:26]} 58... a1=Q+ {[%clk 0:01:23.9]} 59.
Kh6 {[%clk 0:00:27.9]} 59... Qf6 {[%clk 0:01:22.3]} 60. Kh7 {[%clk 0:00:28.8]}
60... Rh1+ {[%clk 0:01:23.2]} 61. Kg8 {[%clk 0:00:30.5]} 61... Rh8# {[%clk
0:01:24.3]} 0-1

[Event "*** Titled Tuesday Blitz"]
[Site "Chess.com"]
[Date "2018.11.06"]
[Round "5"]
[White "dmosesov"]
[Black "BvsN"]
[Result "1-0"]
[WhiteElo "2353"]
[BlackElo "2211"]
[TimeControl "180+2"]
[EndTime "14:07:14 PST"]
[Termination "dmosesov won by resignation"]

1. e4 {[%clk 0:03:01.9]} 1... c5 {[%clk 0:03:00.6]} 2. Nf3 {[%clk 0:03:02.3]}
2... e6 {[%clk 0:03:00.7]} 3. d4 {[%clk 0:03:03.4]} 3... cxd4 {[%clk 0:03:02]}
4. Nxd4 {[%clk 0:03:05.3]} 4... a6 {[%clk 0:03:03.4]} 5. Bd3 {[%clk 0:03:05.3]}
5... Nf6 {[%clk 0:03:02.8]} 6. O-O {[%clk 0:03:06]} 6... d6 {[%clk 0:03:03.3]}
7. Qe2 {[%clk 0:03:06]} 7... g6 {[%clk 0:03:00.6]} 8. c4 {[%clk 0:02:18.5]} 8...
Bg7 {[%clk 0:03:01.1]} 9. Nc3 {[%clk 0:02:20.1]} 9... O-O {[%clk 0:03:00.7]} 10.
Be3 {[%clk 0:02:21.1]} 10... b6 {[%clk 0:02:59]} 11. Kh1 {[%clk 0:02:21.7]}
11... Bb7 {[%clk 0:02:59.5]} 12. Rfd1 {[%clk 0:02:17.3]} 12... Nbd7 {[%clk
0:02:54.8]} 13. f3 {[%clk 0:02:05.8]} 13... Ne5 {[%clk 0:02:41.3]} 14. Rac1
{[%clk 0:01:34]} 14... Nxd3 {[%clk 0:02:26.4]} 15. Qxd3 {[%clk 0:01:35.8]} 15...
Qc7 {[%clk 0:02:11.8]} 16. b4 {[%clk 0:01:30.9]} 16... Nd7 {[%clk 0:02:06.9]}
17. Na4 {[%clk 0:01:12]} 17... Rfd8 {[%clk 0:01:36.8]} 18. Nb3 {[%clk
0:01:05.5]} 18... Bf8 {[%clk 0:01:17.7]} 19. Qe2 {[%clk 0:00:51.9]} 19... Bc6
{[%clk 0:01:09.6]} 20. b5 {[%clk 0:00:47.7]} 20... axb5 {[%clk 0:01:10.1]} 21.
cxb5 {[%clk 0:00:49.6]} 21... Rxa4 {[%clk 0:01:11]} 22. Rxc6 {[%clk 0:00:50]}
22... Qa7 {[%clk 0:01:04.5]} 23. Rd2 {[%clk 0:00:43.3]} 23... Ne5 {[%clk
0:00:55.9]} 24. Rxb6 {[%clk 0:00:22.1]} 24... Qc7 {[%clk 0:00:27.7]} 25. Ra6
{[%clk 0:00:13.4]} 25... Rc4 {[%clk 0:00:23.5]} 26. Bb6 {[%clk 0:00:09.7]} 26...
Rc1+ {[%clk 0:00:14.3]} 27. Nxc1 {[%clk 0:00:10.4]} 27... Qxc1+ {[%clk 0:00:16]}
28. Rd1 {[%clk 0:00:11.6]} 28... Qc8 {[%clk 0:00:10.8]} 29. Bxd8 {[%clk
0:00:12.8]} 29... Qxd8 {[%clk 0:00:12.1]} 30. b6 {[%clk 0:00:14.4]} 30... Nd7
{[%clk 0:00:10.8]} 31. b7 {[%clk 0:00:13.8]} 31... Nb8 {[%clk 0:00:12.5]} 32.
Ra8 {[%clk 0:00:14.2]} 32... Qc7 {[%clk 0:00:14]} 33. Rb1 {[%clk 0:00:11.6]}
33... Kg7 {[%clk 0:00:15.2]} 34. a4 {[%clk 0:00:11.9]} 34... Be7 {[%clk
0:00:16.3]} 35. a5 {[%clk 0:00:13]} 35... d5 {[%clk 0:00:13.8]} 36. exd5 {[%clk
0:00:11.9]} 36... exd5 {[%clk 0:00:14.3]} 37. a6 {[%clk 0:00:11.2]} 37... Qc4
{[%clk 0:00:07]} 38. Qxc4 {[%clk 0:00:11.2]} 38... dxc4 {[%clk 0:00:08.5]} 39.
Rxb8 {[%clk 0:00:12]} 1-0

[Event "*** Titled Tuesday Blitz"]
[Site "Chess.com"]
[Date "2018.11.06"]
[Round "5"]
[White "volcanoexplorer"]
[Black "sere99"]
[Result "1-0"]
[WhiteElo "2471"]
[BlackElo "2307"]
[TimeControl "180+2"]
[EndTime "14:07:16 PST"]
[Termination "volcanoexplorer won by resignation"]

1. e4 {[%clk 0:03:01.9]} 1... c6 {[%clk 0:03:01.1]} 2. d4 {[%clk 0:03:02.3]}
2... d5 {[%clk 0:03:03]} 3. exd5 {[%clk 0:03:04.2]} 3... cxd5 {[%clk 0:03:04.2]}
4. Bd3 {[%clk 0:03:05.8]} 4... Nc6 {[%clk 0:03:04.8]} 5. c3 {[%clk 0:03:07]}
5... Qc7 {[%clk 0:03:06.2]} 6. Ne2 {[%clk 0:03:02.5]} 6... Bg4 {[%clk
0:03:06.4]} 7. f3 {[%clk 0:03:02.7]} 7... Bd7 {[%clk 0:03:07.7]} 8. Bf4 {[%clk
0:03:02.1]} 8... e5 {[%clk 0:03:09.2]} 9. dxe5 {[%clk 0:03:00.9]} 9... Nxe5
{[%clk 0:03:11.1]} 10. Bc2 {[%clk 0:03:00.3]} 10... Nf6 {[%clk 0:02:58.5]} 11.
O-O {[%clk 0:02:40.6]} 11... Bd6 {[%clk 0:02:56.6]} 12. Kh1 {[%clk 0:02:28.6]}
12... O-O {[%clk 0:02:37.5]} 13. Nd4 {[%clk 0:02:26]} 13... Rae8 {[%clk
0:02:33.7]} 14. Nd2 {[%clk 0:02:25.9]} 14... a6 {[%clk 0:02:28.3]} 15. a4 {[%clk
0:02:09.8]} 15... Nh5 {[%clk 0:02:20.8]} 16. Bg3 {[%clk 0:01:48.2]} 16... Nxg3+
{[%clk 0:02:13.8]} 17. hxg3 {[%clk 0:01:50.1]} 17... Ng6 {[%clk 0:02:06.3]} 18.
f4 {[%clk 0:01:50.2]} 18... Qb6 {[%clk 0:01:44.4]} 19. Bb3 {[%clk 0:01:24.2]}
19... Bc5 {[%clk 0:01:34.5]} 20. N2f3 {[%clk 0:01:21.3]} 20... Bg4 {[%clk
0:01:32.9]} 21. Bxd5 {[%clk 0:01:18.3]} 21... Qxb2 {[%clk 0:01:23.6]} 22. Qd3
{[%clk 0:01:01.3]} 22... Bxf3 {[%clk 0:01:14.9]} 23. Bxf3 {[%clk 0:00:51.5]}
23... Rd8 {[%clk 0:00:54]} 24. Rab1 {[%clk 0:00:35.1]} 24... Qa3 {[%clk
0:00:53]} 25. Qc4 {[%clk 0:00:34]} 25... Bxd4 {[%clk 0:00:28.4]} 26. cxd4 {[%clk
0:00:35.3]} 26... Rc8 {[%clk 0:00:29.7]} 27. Qb4 {[%clk 0:00:26.1]} 27... Qe3
{[%clk 0:00:20.6]} 28. d5 {[%clk 0:00:18.3]} 28... Ne7 {[%clk 0:00:19.5]} 29.
Rfe1 {[%clk 0:00:17]} 29... Qd3 {[%clk 0:00:13.1]} 30. Qxe7 {[%clk 0:00:16.5]}
30... h6 {[%clk 0:00:09.2]} 31. Qe4 {[%clk 0:00:16.9]} 31... Qa3 {[%clk
0:00:09.5]} 32. Qd4 {[%clk 0:00:16]} 32... Rc3 {[%clk 0:00:10]} 33. Rf1 {[%clk
0:00:10.2]} 33... Rd3 {[%clk 0:00:10.7]} 34. Qb4 {[%clk 0:00:09.7]} 34... Qa2
{[%clk 0:00:11]} 35. d6 {[%clk 0:00:10.9]} 35... Rd8 {[%clk 0:00:11.3]} 36. Rfd1
{[%clk 0:00:10.7]} 36... Rxd1+ {[%clk 0:00:07.8]} 37. Rxd1 {[%clk 0:00:11.5]}
37... Qf2 {[%clk 0:00:09.4]} 38. d7 {[%clk 0:00:10.5]} 38... Qxg3 {[%clk
0:00:10.1]} 39. Qe7 {[%clk 0:00:11.5]} 1-0

[Event "*** Titled Tuesday Blitz"]
[Site "Chess.com"]
[Date "2018.11.06"]
[Round "5"]
[White "ZuchBolt"]
[Black "Kawhi_Leonard2"]
[Result "0-1"]
[WhiteElo "2269"]
[BlackElo "2291"]
[TimeControl "180+2"]
[EndTime "14:07:17 PST"]
[Termination "Kawhi_Leonard2 won by resignation"]

1. d4 {[%clk 0:03:01.9]} 1... Nf6 {[%clk 0:02:56.2]} 2. c4 {[%clk 0:03:02.7]}
2... c5 {[%clk 0:02:56.8]} 3. d5 {[%clk 0:03:01.4]} 3... e6 {[%clk 0:02:58.1]}
4. Nc3 {[%clk 0:03:02.2]} 4... exd5 {[%clk 0:02:58.5]} 5. cxd5 {[%clk
0:03:04.1]} 5... d6 {[%clk 0:02:59.7]} 6. e4 {[%clk 0:03:05]} 6... g6 {[%clk
0:03:00.6]} 7. f3 {[%clk 0:03:03.4]} 7... Bg7 {[%clk 0:03:01.1]} 8. Nge2 {[%clk
0:03:04.9]} 8... a6 {[%clk 0:02:59.6]} 9. a4 {[%clk 0:03:04.5]} 9... Nbd7 {[%clk
0:02:57.4]} 10. Ng3 {[%clk 0:03:04.8]} 10... h5 {[%clk 0:02:57.5]} 11. Be2
{[%clk 0:03:03.7]} 11... h4 {[%clk 0:02:58.1]} 12. Nf1 {[%clk 0:03:04.8]} 12...
Ne5 {[%clk 0:02:57]} 13. Ne3 {[%clk 0:02:57.8]} 13... Nh5 {[%clk 0:02:51]} 14.
Nc4 {[%clk 0:02:54.4]} 14... Nxc4 {[%clk 0:02:49.4]} 15. Bxc4 {[%clk 0:02:56.3]}
15... Qe7 {[%clk 0:02:41.9]} 16. O-O {[%clk 0:02:50.9]} 16... Bd4+ {[%clk
0:02:40.3]} 17. Rf2 {[%clk 0:02:45.7]} 17... Bd7 {[%clk 0:02:11.2]} 18. Ne2
{[%clk 0:02:41.1]} 18... Bxf2+ {[%clk 0:02:09.4]} 19. Kxf2 {[%clk 0:02:43]}
19... O-O {[%clk 0:02:09.3]} 20. a5 {[%clk 0:02:36.5]} 20... Qe5 {[%clk
0:01:58.6]} 21. g3 {[%clk 0:02:30.3]} 21... f5 {[%clk 0:01:51.6]} 22. Bf4 {[%clk
0:02:10.9]} 22... Nxf4 {[%clk 0:01:46.8]} 23. gxf4 {[%clk 0:02:12.8]} 23... Qxb2
{[%clk 0:01:46.6]} 24. Rb1 {[%clk 0:02:08.9]} 24... Qg7 {[%clk 0:01:36]} 25.
Rxb7 {[%clk 0:02:08.6]} 25... fxe4 {[%clk 0:01:28.4]} 26. fxe4 {[%clk
0:02:03.9]} 26... Rfb8 {[%clk 0:01:20.5]} 27. Qb3 {[%clk 0:01:59.9]} 27... Qf8
{[%clk 0:01:10.3]} 28. e5 {[%clk 0:01:46.8]} 28... Bb5 {[%clk 0:01:00.2]} 29.
Rc7 {[%clk 0:01:14.3]} 29... Qd8 {[%clk 0:00:54.9]} 30. Rxc5 {[%clk 0:00:31.1]}
30... dxc5 {[%clk 0:00:49.8]} 31. d6+ {[%clk 0:00:31.7]} 31... Bxc4 {[%clk
0:00:43.5]} 32. Qxc4+ {[%clk 0:00:33.6]} 32... Kg7 {[%clk 0:00:41.1]} 33. Qxc5
{[%clk 0:00:26.8]} 33... Rb5 {[%clk 0:00:40.5]} 34. Qd4 {[%clk 0:00:26.6]} 34...
Qxa5 {[%clk 0:00:18.1]} 35. e6+ {[%clk 0:00:24.9]} 35... Kh7 {[%clk 0:00:19.3]}
36. e7 {[%clk 0:00:21.1]} 36... Rd5 {[%clk 0:00:09.6]} 37. Qf6 {[%clk
0:00:21.4]} 37... Rxd6 {[%clk 0:00:09.2]} 38. Qxd6 {[%clk 0:00:20.7]} 38... Re8
{[%clk 0:00:06.9]} 39. Qf6 {[%clk 0:00:21.3]} 39... Qc5+ {[%clk 0:00:07.2]} 40.
Nd4 {[%clk 0:00:20.7]} 40... Qxe7 {[%clk 0:00:09.1]} 41. Qxa6 {[%clk 0:00:18.5]}
41... Qe3+ {[%clk 0:00:09.4]} 42. Kf1 {[%clk 0:00:19.8]} 42... Qxd4 {[%clk
0:00:10]} 43. Qb7+ {[%clk 0:00:20.9]} 43... Kh6 {[%clk 0:00:08.6]} 44. Qb5
{[%clk 0:00:18]} 44... Qd1+ {[%clk 0:00:08.7]} 0-1